bitfinex/quotes_ETHUSD_20241129
["timestamp","ask_amount","ask_price","bid_price","bid_amount"]
[1732882755408,0.277578,3602.5,3601.9,0.05227583]
[1732882755639,0.277578,3602.5,3602.0,2.77623]
[1732882755834,0.277578,3602.5,3602.0,2.82838423]
[1732882755983,0.3053328,3602.4,3602.0,2.82838423]
[1732882756593,0.3053328,3602.4,3602.0,0.05215423]
[1732882757031,0.3053328,3602.4,3601.8,2.77636]
[1732882757231,0.3053328,3602.4,3602.1,0.051964]
[1732882757435,0.3053328,3602.4,3601.8,2.77637]
[1732882757634,0.30812328,3602.3,3602.2,0.05189477]
[1732882757837,0.30812328,3602.3,3601.9,2.77631]
[1732882757993,2.77564,3602.8,3602.2,0.05189477]
[1732882758195,2.77547,3603.0,3601.5,0.7668]
[1732882758196,3.0,3602.9,3601.5,3.54337]
[1732882758388,2.77569,3602.7,3602.3,0.0518267]
[1732882758593,2.77569,3602.7,3602.0,2.77622]
[1732882758803,2.77569,3602.7,3602.4,0.05176328]
[1732882759108,0.577569,3602.6,3602.1,2.77615]
[1732882759322,0.577569,3602.6,3602.5,0.05170104]
[1732882759818,0.577569,3602.6,3602.1,2.77615]
[1732882760018,0.577569,3602.6,3602.5,0.05170104]
[1732882760214,0.577569,3602.6,3602.1,2.77615]
[1732882760414,0.577569,3602.6,3602.4,2.77592]
[1732882760621,5.77505,3603.6,3602.2,3.58686]
[1732882760842,2.77554,3602.9,3602.2,3.58686]
[1732882761439,2.77554,3602.9,3602.3,0.05182553]
[1732882761805,2.77554,3602.9,3602.2,3.58686]
[1732882762008,0.555094,3602.8,3601.9,0.7832]
[1732882762348,2.77562,3602.8,3602.1,2.77613]
[1732882762838,2.77562,3602.8,3602.2,0.05184128]
[1732882763040,2.77533,3603.2,3602.2,2.82790128]
[1732882763222,2.77554,3602.9,3602.2,2.82790128]
[1732882763420,0.332554,3602.8,3602.2,2.82790128]
[1732882763641,0.55,3602.7,3602.2,0.05184128]
[1732882763808,2.77579,3602.6,3602.2,0.05184128]
[1732882764009,2.77579,3602.6,3601.9,3.55948]
[1732882764209,2.77579,3602.6,3602.3,0.05177786]
[1732882764536,3.3642564,3602.5,3601.6,3.59502]
[1732882764735,3.3642564,3602.5,3601.6,2.77652]
[1732882765050,3.3642564,3602.5,3601.0,3.0]
[1732882765051,2.77638,3601.8,3601.7,0.05215144]
[1732882765507,2.77638,3601.8,3600.9,3.53866]
[1732882765709,2.77638,3601.8,3601.7,0.05215144]
[1732882766013,3.331647,3601.8,3601.1,2.77692]
[1732882766433,2.77662,3601.5,3601.2,0.05246286]
[1732882766908,2.77662,3601.5,3600.7,3.0]
[1732882767109,2.77662,3601.5,3601.3,0.05240057]
[1732882767307,2.77662,3601.5,3600.7,3.0]
[1732882767547,2.77662,3601.5,3600.9,2.77708]
[1732882767915,2.7766,3601.6,3601.0,0.05258745]
[1732882768239,0.6108387,3601.6,3601.0,2.82956745]
[1732882768439,3.3873887,3601.6,3601.0,2.82956745]
[1732882769051,2.77689,3601.2,3601.0,0.05258745]
[1732882769252,0.55,3601.5,3601.0,0.05258745]
[1732882769253,2.77682,3601.3,3601.0,0.05258745]
[1732882769549,2.77692,3601.1,3600.5,2.77738]
[1732882770211,2.777,3601.0,3600.3,0.794]
[1732882771268,0.6108387,3601.6,3600.3,3.82550381]
[1732882771411,0.1,3602.0,3600.6,2.77726]
[1732882771606,2.77661,3601.6,3600.6,2.77726]
[1732882771805,2.77663,3601.5,3600.6,2.77726]
[1732882772347,2.77666,3601.5,3600.4,5.77744]
[1732882772533,2.77671,3601.4,3600.4,5.77744]
[1732882772842,0.277671,3601.3,3600.4,5.77744]
[1732882773007,0.277671,3601.3,3600.5,2.77738]
[1732882774029,2.77665,3601.5,3600.5,2.77738]
[1732882774230,0.09430885,3601.4,3600.5,2.77738]
[1732882774726,3.32678,3601.3,3600.3,3.57152]
[1732882774926,0.55,3601.3,3600.3,0.794]
[1732882775173,0.09430441,3601.4,3600.3,0.794]
[1732882775472,0.55,3601.3,3600.3,0.794]
[1732882775659,2.77685,3601.2,3600.3,3.57154]
[1732882775976,2.77699,3601.1,3600.3,0.794]
[1732882776144,2.777,3601.1,3600.1,2.77769]
[1732882776341,2.777,3601.1,3600.2,0.05260383]
[1732882776668,0.610377,3601.0,3600.2,0.05260383]
[1732882776854,0.610377,3601.0,3600.2,2.83020383]
[1732882777332,3.387427,3601.0,3600.2,0.05260383]
[1732882777672,2.77736,3600.6,3599.7,3.55779]
[1732882777840,2.77736,3600.6,3600.3,0.0525415]
[1732882778041,2.77736,3600.6,3599.4,3.81130381]
[1732882778042,0.827736,3600.5,3599.8,2.77792]
[1732882778452,3.605126,3600.5,3599.9,0.05285015]
[1732882778640,0.827736,3600.5,3599.9,0.05285015]
[1732882779034,0.827736,3600.5,3599.7,2.77793]
[1732882779235,0.827736,3600.5,3600.0,0.05278782]
[1732882779536,0.3605076,3600.4,3599.7,2.77793]
[1732882779845,2.77747,3600.4,3599.7,2.77793]
[1732882780041,2.77747,3600.4,3599.8,0.05291249]
[1732882780563,0.55,3600.5,3599.8,2.83080249]
[1732882780780,0.610377,3601.0,3599.8,2.83080249]
[1732882780781,3.32737,3600.6,3599.8,0.05291249]
[1732882780930,0.55,3600.7,3599.8,2.83080249]
[1732882781267,0.55,3600.5,3599.9,0.05285015]
[1732882781467,3.32745,3600.5,3599.9,0.05285015]
[1732882781643,0.55,3600.6,3599.9,2.77781]
[1732882781847,0.55,3600.6,3600.0,2.83051782]
[1732882782144,0.55,3600.6,3600.0,3.64461782]
[1732882782456,2.77693,3601.1,3600.3,2.77748]
[1732882782847,3.0,3601.2,3600.4,0.05253852]
[1732882783092,2.77698,3601.1,3600.4,0.05253852]
[1732882783287,0.555375,3601.0,3600.4,0.05253852]
[1732882783587,3.332415,3601.0,3600.3,2.77748]
[1732882784261,3.332415,3601.0,3600.4,0.05253852]
[1732882784881,3.332415,3601.0,3600.4,2.77746]
[1732882785271,3.332415,3601.0,3600.5,0.0524762]
[1732882785579,0.3332415,3600.9,3600.5,0.0524762]
[1732882786083,3.1103215,3600.9,3600.3,2.77753]
[1732882786440,3.1103215,3600.9,3600.4,0.05253852]
[1732882787688,0.3332415,3600.9,3600.7,2.77723]
[1732882787979,0.1,3601.7,3600.4,0.05253852]
[1732882787980,0.55,3601.1,3600.4,0.05253852]
[1732882788179,2.77687,3601.2,3600.8,0.05228927]
[1732882788350,2.77687,3601.2,3600.1,2.77768]
[1732882788773,2.77687,3601.2,3600.4,2.77744]
[1732882789200,2.77702,3601.0,3600.5,0.0524762]
[1732882789361,0.277702,3600.9,3600.5,0.0524762]
[1732882789696,0.277702,3600.9,3600.6,0.05241389]
[1732882790057,0.277702,3600.9,3600.3,2.77752]
[1732882790287,0.277702,3600.9,3600.7,0.05235157]
[1732882790594,0.277702,3600.9,3600.3,2.77752]
[1732882790803,0.55,3601.3,3600.8,0.05228927]
[1732882791004,3.55,3601.3,3600.1,2.7777]
[1732882791211,3.55,3601.3,3600.0,0.8141]
[1732882791212,3.55,3601.3,3600.6,2.77727]
[1732882791367,0.09432517,3601.2,3600.7,0.05235157]
[1732882791973,2.87117517,3601.2,3600.7,0.05235157]
[1732882792261,1.01411369,3601.1,3600.4,2.7774]
[1732882792462,1.01411369,3601.1,3600.8,0.05228927]
[1732882792679,1.01411369,3601.1,3600.4,2.7774]
[1732882792874,1.01411369,3601.1,3600.9,0.05222696]
[1732882793074,1.01411369,3601.1,3600.4,2.7774]
[1732882793590,1.01411369,3601.1,3600.2,2.77762]
[1732882793907,1.01411369,3601.1,3600.5,2.77738]
[1732882794302,0.09432517,3601.0,3600.6,0.05242089]
[1732882794498,0.09432517,3600.9,3600.6,0.05242089]
[1732882794813,0.09432517,3601.0,3600.7,0.05235857]
[1732882795120,0.09432517,3601.0,3600.5,2.77738]
[1732882795291,0.09432517,3600.9,3600.8,0.05229627]
[1732882795475,0.09432517,3601.0,3600.6,2.77729]
[1732882795672,0.09432517,3600.9,3600.8,0.05246957]
[1732882795993,0.09432517,3601.1,3600.8,0.05246957]
[1732882796192,0.09432517,3601.0,3600.9,2.77708]
[1732882796407,0.55,3601.6,3600.9,2.82948727]
[1732882796628,0.09432517,3601.5,3600.9,2.82948727]
[1732882796809,0.09432517,3601.4,3600.9,0.05240727]
[1732882797016,0.09432517,3601.4,3600.7,2.77718]
[1732882797017,0.43642069,3601.3,3600.8,2.77714]
[1732882797219,0.09432517,3601.2,3600.8,2.77714]
[1732882797539,0.09432517,3601.1,3600.9,0.05240377]
[1732882797693,0.09432517,3601.0,3600.9,2.82947377]
[1732882797893,2.87101517,3601.4,3600.9,0.05240377]
[1732882798124,1.01408069,3601.3,3600.9,0.05240377]
[1732882798340,0.09432517,3601.2,3600.7,2.7772]
[1732882798509,0.64432517,3601.1,3601.0,0.05232984]
[1732882798838,0.64432517,3601.1,3601.0,0.0523217]
[1732882799215,0.64432517,3601.1,3600.9,2.77708]
[1732882799446,0.64432517,3601.0,3600.9,2.77708]
[1732882800064,0.55,3601.4,3601.1,2.77692]
[1732882800246,0.55,3601.2,3600.9,2.77708]
[1732882800400,0.09432517,3601.1,3600.9,2.77708]
[1732882800722,0.64432517,3601.1,3601.0,2.777]
[1732882800929,0.55,3601.1,3601.0,2.777]
[1732882801130,2.77725,3600.7,3600.1,0.7868]
[1732882801438,0.64460659,3600.6,3600.1,2.77767]
[1732882801641,0.55,3600.7,3600.2,2.77762]
[1732882801857,0.09460939,3600.6,3600.3,0.7922]
[1732882802014,0.09461046,3600.7,3600.3,0.7922]
[1732882802222,3.32706,3601.0,3600.4,2.77745]
[1732882802509,0.55,3600.8,3600.4,2.77745]
[1732882802711,0.09461549,3600.7,3600.4,2.77745]
[1732882802936,0.09461549,3600.6,3600.4,2.77745]
[1732882803235,0.55,3600.8,3600.5,2.77737]
[1732882803539,0.55,3601.1,3600.6,2.77725]
[1732882803703,0.09462851,3601.0,3600.6,2.77725]
[1732882803918,0.64462851,3600.9,3600.6,2.77725]
[1732882804218,0.09462851,3600.8,3600.6,2.77725]
[1732882804414,0.55,3600.9,3600.4,3.412172]
[1732882804651,0.09463598,3600.8,3600.5,2.77738]
[1732882804855,2.77622,3602.1,3601.3,2.77674]
[1732882805017,2.77622,3602.1,3600.2,2.77761]
[1732882805018,0.09463766,3602.0,3601.1,0.7783]
[1732882805215,0.1,3602.9,3601.3,2.77671]
[1732882805216,0.09463766,3601.9,3601.3,2.77671]
[1732882805522,0.09463766,3601.8,3601.3,0.633191]
[1732882805724,0.09463766,3601.7,3601.2,2.77684]
[1732882805929,3.03150381,3603.0,3601.1,0.7783]
[1732882806134,2.77598,3602.4,3601.6,2.77652]
[1732882806677,2.7761,3602.2,3601.7,0.05017582]
[1732882806961,3.03150381,3603.0,3601.8,0.7645]
[1732882807254,2.77504,3603.6,3602.2,3.54058]
[1732882807418,0.30315038,3603.5,3602.2,3.54058]
[1732882807612,0.30315038,3603.5,3602.7,2.77568]
[1732882807842,1e-05,3604.0,3602.8,0.04949101]
[1732882808017,2.77478,3603.9,3602.9,2.77552]
[1732882808219,2.77498,3603.7,3603.0,0.04923798]
[1732882808446,2.775,3603.6,3603.0,0.04923798]
[1732882808651,0.554985,3603.5,3603.0,0.04923798]
[1732882808862,0.554985,3603.5,3602.8,2.77561]
[1732882809157,0.554985,3603.5,3603.1,0.04917575]
[1732882809158,0.55,3603.4,3603.1,0.04917575]
[1732882809322,0.55,3603.4,3602.8,2.77561]
[1732882809524,2.7747,3604.0,3603.2,0.04911352]
[1732882809732,0.27747,3603.9,3603.6,2.77498]
[1732882810020,1e-05,3604.0,3603.7,0.04873531]
[1732882810229,1e-05,3604.0,3603.7,2.7749]
[1732882810556,1e-05,3604.0,3603.8,0.0486731]
[1732882811660,1e-05,3604.0,3603.8,2.8234531]
[1732882811874,1e-05,3604.0,3603.8,0.0486731]
[1732882812044,1e-05,3604.0,3603.9,2.77477]
[1732882812281,1e-05,3604.0,3603.9,2.82333114]
[1732882812480,1e-05,3604.0,3603.9,0.04856114]
[1732882812982,1e-05,3604.0,3603.8,2.77484]
[1732882813189,1e-05,3604.0,3603.9,0.04823002]
[1732882813988,1e-05,3604.0,3603.6,3.53468]
[1732882814559,1e-05,3604.0,3603.7,0.04835442]
[1732882814763,1e-05,3604.0,3603.7,2.82325442]
[1732882815156,1e-05,3604.0,3603.9,2.77477]
[1732882815504,1e-05,3604.0,3603.9,2.82300002]
[1732882816554,1e-05,3604.0,3603.9,0.04823002]
[1732882816987,1e-05,3604.0,3603.7,2.77488]
[1732882817298,1e-05,3604.0,3603.8,0.04829222]
[1732882817790,1e-05,3604.0,3602.8,3.0]
[1732882817791,1e-05,3604.0,3603.3,2.77521]
[1732882817990,1e-05,3604.0,3603.9,0.04663748]
[1732882818195,1e-05,3604.0,3603.3,2.77521]
[1732882818658,1e-05,3604.0,3603.4,0.04694851]
[1732882819904,2.77518,3603.4,3602.4,3.59907]
[1732882820200,0.55,3603.3,3602.4,3.59907]
[1732882820387,0.55,3603.3,3602.5,0.04750859]
[1732882820593,0.55,3603.4,3602.5,2.82333859]
[1732882821214,6.32501,3603.6,3602.5,0.04750859]
[1732882821412,0.55,3603.2,3602.5,0.04750859]
[1732882822267,2.77531,3603.2,3602.4,0.8232]
[1732882822469,0.55,3603.2,3602.6,0.04744635]
[1732882822708,0.55,3602.9,3602.5,0.04750859]
[1732882823015,0.55,3602.9,3602.7,0.0473841]
[1732882823305,0.55,3602.9,3602.8,0.04732187]
[1732882823717,0.55,3602.9,3602.1,0.7606]
[1732882823885,0.55,3602.9,3602.1,1.39192]
[1732882824216,0.55,3602.9,3602.2,0.04783831]
[1732882826200,3.32556,3602.9,3602.2,0.04783831]
[1732882828406,0.55,3603.1,3602.2,2.82385831]
[1732882828608,2.77489,3603.8,3602.9,2.77548]
[1732882828925,8.8,3604.6,3603.4,2.77512]
[1732882828926,2.77446,3604.3,3603.4,2.77512]
[1732882829128,2.77458,3604.2,3603.3,2.7752]
[1732882829281,2.77458,3604.2,3603.5,0.04717683]
[1732882829626,2.77466,3604.1,3603.4,0.04723905]
[1732882829829,2.77466,3604.1,3603.6,0.04711462]
[1732882830028,2.77466,3604.1,3603.5,0.32942274]
[1732882830332,0.55001,3604.0,3603.5,0.32942274]
[1732882830681,1e-05,3604.0,3603.5,0.32942274]
[1732882831125,1e-05,3604.0,3603.5,3.10449274]
[1732882831712,1e-05,3604.0,3603.6,1.34297227]
[1732882831916,1e-05,3604.0,3603.9,2.77477]
[1732882832430,1e-05,3604.0,3603.9,2.85641085]
[1732882832789,1e-05,3604.0,3603.9,0.08164085]
[1732882833029,1e-05,3604.0,3603.9,2.85641085]
[1732882833212,1e-05,3604.0,3603.9,3.60935429]
[1732882834504,1e-05,3604.0,3603.9,0.08164085]
[1732882834924,1e-05,3604.0,3603.6,0.755]
[1732882835128,1e-05,3604.0,3603.9,0.07879443]
[1732882835433,0.55,3603.8,3603.3,0.7885]
[1732882835730,0.55,3603.9,3603.3,0.7885]
[1732882835932,3.32484,3603.9,3603.3,0.7885]
[1732882836137,0.55,3603.9,3603.3,0.7885]
[1732882836535,0.55,3603.9,3603.4,0.07911259]
[1732882836924,2.77477,3603.9,3603.4,0.07911259]
[1732882837153,0.55,3603.8,3603.4,0.07911259]
[1732882837533,3.3249,3603.8,3603.4,0.07911259]
[1732882837842,2.77501,3603.6,3603.4,0.07911259]
[1732882838004,2.77515,3603.4,3602.9,0.761]
[1732882838199,3.32528,3603.3,3602.5,3.53683]
[1732882838399,2.77531,3603.2,3602.5,0.761]
[1732882838634,0.55,3603.2,3602.6,0.07724331]
[1732882839319,2.77539,3603.1,3602.6,0.07724331]
[1732882839510,0.55,3603.2,3602.6,0.07724331]
[1732882840142,3.32533,3603.2,3602.6,0.07724331]
[1732882840640,2.77546,3603.0,3602.6,0.07724331]
[1732882840941,3.935373,3603.2,3602.6,0.07724331]
[1732882841108,2.77533,3603.2,3602.6,0.07724331]
[1732882841449,0.55,3603.3,3602.6,2.85299331]
[1732882841632,2.77502,3603.6,3602.8,2.77561]
[1732882841833,2.77516,3603.4,3602.9,0.07710605]
[1732882842161,2.77516,3603.4,3602.5,0.761]
[1732882842162,2.77531,3603.2,3602.5,0.761]
[1732882842323,0.55,3603.0,3602.5,0.761]
[1732882842960,0.55,3603.0,3602.5,3.53684]
[1732882843263,3.00001,3604.0,3603.1,0.7717]
[1732882843410,2.77485,3603.8,3603.1,0.7717]
[1732882843920,2.7747,3604.0,3603.1,0.7717]
[1732882843921,2.77478,3603.9,3603.2,2.7753]
[1732882844263,2.7747,3604.0,3603.2,2.7753]
[1732882844264,1e-05,3604.0,3603.2,2.77531]
[1732882844424,1e-05,3604.0,3603.4,2.77508]
[1732882846433,1e-05,3604.0,3603.1,0.632277]
[1732882846632,1e-05,3604.0,3603.9,3.54587]
[1732882846928,1e-05,3604.0,3603.9,4.177939]
[1732882848348,1e-05,3604.0,3603.9,1.403169]
[1732882848714,1e-05,3604.0,3603.9,0.7711]
[1732882850067,1e-05,3604.0,3603.5,0.7989]
[1732882850372,2.77479,3603.9,3603.5,0.7989]
[1732882850735,2.77479,3603.9,3603.2,0.8263]
[1732882850935,2.7747,3604.0,3603.2,3.8263]
[1732882851129,2.77477,3603.9,3603.2,3.8263]
[1732882851336,1e-05,3604.0,3603.2,0.8263]
[1732882851602,2.77486,3603.8,3603.3,0.07670987]
[1732882851876,2.77496,3603.7,3603.2,0.8263]
[1732882852037,2.77508,3603.5,3603.2,0.8263]
[1732882852384,2.77508,3603.5,3603.3,0.07672239]
[1732882852720,2.77508,3603.5,3602.9,0.7852]
[1732882852917,2.77516,3603.4,3602.9,0.7852]
[1732882853184,0.55,3603.5,3602.6,0.7852]
[1732882853375,2.77538,3603.2,3602.6,0.7852]
[1732882855760,2.77538,3603.2,3602.0,3.0]
[1732882855761,2.77551,3603.0,3602.1,0.7776]
[1732882856060,2.77551,3603.0,3602.3,2.776]
[1732882856255,3.330416,3603.2,3602.3,2.776]
[1732882856472,2.77548,3603.0,3602.3,2.776]
[1732882857060,2.7757,3602.7,3602.1,0.7776]
[1732882858398,3.330824,3602.7,3602.1,0.7776]
[1732882858692,2.77601,3602.3,3601.7,0.8211]
[1732882858851,2.77598,3602.4,3601.7,0.8211]
[1732882859366,2.7762,3602.1,3601.7,0.8211]
[1732882860293,2.77625,3602.0,3601.4,0.7951]
[1732882860449,2.7762,3602.1,3601.4,0.7951]
[1732882860657,2.77624,3602.0,3601.4,0.7951]
[1732882862793,2.77612,3602.2,3601.4,3.57179]
[1732882863404,2.77616,3602.1,3601.4,3.57179]
[1732882864266,3.03150381,3602.9,3601.4,0.7951]
[1732882864594,2.77628,3602.0,3601.4,0.7951]
[1732882864894,2.77643,3601.8,3601.4,0.7951]
[1732882865064,2.77569,3602.7,3601.0,0.8082]
[1732882865271,0.55,3601.9,3601.0,3.58515]
[1732882865469,2.77647,3601.7,3601.0,3.58515]
[1732882865864,2.77646,3601.8,3601.1,2.77692]
[1732882866482,2.77615,3602.1,3601.2,0.07845081]
[1732882866662,0.55,3602.3,3601.2,0.07845081]
[1732882867015,3.55,3602.3,3601.2,0.07845081]
[1732882867161,3.32677,3601.3,3601.2,0.07845081]
[1732882867485,2.77703,3601.0,3600.6,0.7716]
[1732882867804,3.937125,3601.3,3600.6,0.7716]
[1732882867963,3.32678,3601.3,3600.7,0.07631926]
[1732882868163,2.77617,3602.1,3601.0,3.03150381]
[1732882868399,2.77617,3602.1,3601.2,2.77679]
[1732882868582,2.77632,3601.9,3601.1,3.62462014]
[1732882868790,2.77623,3602.0,3601.3,0.07597476]
[1732882868993,3.0,3602.6,3601.2,0.07603802]
[1732882869295,2.77594,3602.4,3601.5,0.7716]
[1732882869593,0.36031504,3602.5,3601.5,0.7716]
[1732882869594,2.77609,3602.2,3601.5,0.7716]
[1732882869774,2.77609,3602.2,3601.6,0.0757884]
[1732882869974,2.77596,3602.4,3601.6,2.77653]
[1732882870181,2.776,3602.3,3601.5,0.7716]
[1732882870496,2.776,3602.3,3601.6,0.0757884]
[1732882870798,0.55,3602.4,3601.9,2.77626]
[1732882871099,5.77583,3602.6,3602.0,0.07553544]
[1732882871401,2.77566,3602.8,3602.1,0.8088]
[1732882871799,2.77546,3603.0,3602.2,0.07536031]
[1732882871962,2.77567,3602.8,3602.2,0.07536031]
[1732882872695,3.32571,3602.7,3602.2,0.07536031]
[1732882873364,2.77545,3603.1,3602.4,2.7759]
[1732882873567,2.77545,3603.1,3602.2,0.07536031]
[1732882873568,2.77547,3603.0,3602.2,2.85138031]
[1732882873781,2.77547,3603.0,3602.5,0.07514235]
[1732882873988,2.77516,3603.4,3602.1,0.8088]
[1732882874159,5.77502,3603.6,3602.8,3.5456]
[1732882874367,5.77502,3603.6,3602.9,2.77552]
[1732882874597,3.0,3603.4,3602.9,0.07487368]
[1732882876045,2.77516,3603.4,3602.9,0.07487368]
[1732882876511,2.77516,3603.4,3603.0,0.07480822]
[1732882876825,0.55,3603.4,3603.0,0.07480822]
[1732882876965,0.55,3603.4,3602.9,2.77553]
[1732882877308,3.9904989,3603.4,3603.0,0.07480822]
[1732882877802,3.7656589,3603.4,3602.6,2.77575]
[1732882878003,3.7656589,3603.4,3603.1,0.07474502]
[1732882878204,3.7656589,3603.4,3602.7,2.77566]
[1732882878413,3.7656589,3603.4,3603.2,0.07468183]
[1732882878702,3.7656589,3603.4,3602.7,2.77566]
[1732882878703,0.95406789,3603.3,3602.7,2.77566]
[1732882878902,3.72931789,3603.3,3602.6,2.77576]
[1732882879706,3.72931789,3603.3,3602.7,2.77569]
[1732882880390,0.95406789,3603.3,3602.5,0.7999]
[1732882880709,2.77571,3602.7,3602.2,0.7858]
[1732882880890,2.77562,3602.8,3602.2,0.7858]
[1732882881205,6.32551,3603.0,3602.2,3.56181]
[1732882881396,2.77555,3602.9,3602.2,3.56181]
[1732882881597,2.77555,3602.9,3602.3,0.07274766]
[1732882881906,3.685644,3602.9,3602.3,0.07274766]
[1732882882271,0.910094,3602.9,3602.3,0.07274766]
[1732882882632,2.77569,3602.7,3602.3,0.07274766]
[1732882882973,2.77569,3602.7,3602.2,0.7858]
[1732882883183,2.77569,3602.7,3602.4,0.07268444]
[1732882883383,3.7768164,3602.7,3602.3,0.07274766]
[1732882883611,3.7768164,3602.7,3602.5,0.07262122]
[1732882883903,3.7768164,3602.7,3602.6,0.07255801]
[1732882884293,3.7768164,3602.7,3602.2,0.7858]
[1732882884471,3.7768164,3602.7,3602.3,0.07274766]
[1732882884672,3.7768164,3602.7,3602.2,0.7858]
[1732882884885,2.77578,3602.6,3602.3,0.07274766]
[1732882885086,2.77578,3602.6,3602.2,0.7858]
[1732882885287,2.77593,3602.4,3602.3,0.07274766]
[1732882885484,2.77636,3601.9,3601.2,3.59788]
[1732882885709,2.7764,3601.8,3601.3,0.07113618]
[1732882886086,2.7764,3601.8,3601.2,0.8211]
[1732882886286,3.03150381,3602.1,3601.2,0.8211]
[1732882886490,2.77648,3601.7,3601.3,0.07113618]
[1732882886694,2.77664,3601.5,3600.9,3.59817]
[1732882887018,0.45259889,3602.0,3601.1,2.77692]
[1732882887019,2.77644,3601.8,3601.1,2.77692]
[1732882887315,0.64443373,3601.7,3601.2,0.07122963]
[1732882887489,3.42090373,3601.7,3601.2,0.07122963]
[1732882887703,3.32647,3601.7,3601.2,0.07122963]
[1732882888096,2.77647,3601.7,3601.2,0.07122963]
[1732882888296,3.34365438,3602.8,3601.2,0.07122963]
[1732882888297,3.03150381,3602.9,3601.4,0.7961]
[1732882888500,2.77597,3602.4,3601.7,2.77644]
[1732882889019,2.77597,3602.4,3601.8,0.07085014]
[1732882889529,2.77601,3602.3,3601.8,0.07085014]
[1732882890008,0.55,3602.4,3601.7,2.77644]
[1732882890249,0.55,3602.4,3600.2,0.1]
[1732882890250,2.77575,3602.7,3602.1,2.77612]
[1732882890582,2.77575,3602.7,3602.2,0.07059721]
[1732882891022,2.77585,3602.5,3601.8,3.58206]
[1732882891230,2.77594,3602.4,3602.3,0.07058432]
[1732882891389,2.77594,3602.4,3601.8,3.58206]
[1732882891586,2.77576,3602.7,3601.8,0.8057]
[1732882891815,2.77594,3602.4,3601.9,0.07083724]
[1732882892242,2.776,3602.4,3601.9,0.07083724]
[1732882892591,3.053366,3602.6,3601.9,0.07083724]
[1732882892822,2.77601,3602.3,3601.9,0.07083724]
[1732882893232,2.77617,3602.1,3601.9,0.07083724]
[1732882893527,3.331368,3602.1,3601.9,0.07083724]
[1732882893703,0.555218,3602.1,3601.9,0.07083724]
[1732882893906,0.555218,3602.1,3601.5,0.825]
[1732882894133,2.77608,3602.2,3602.0,0.07074939]
[1732882894431,2.77608,3602.2,3601.5,3.60157]
[1732882894630,3.32608,3602.2,3602.1,0.07069287]
[1732882894807,3.32608,3602.2,3601.5,3.60157]
[1732882895003,3.32608,3602.2,3602.1,0.07069287]
[1732882895209,3.32608,3602.2,3601.6,2.77654]
[1732882895210,2.77616,3602.1,3601.6,2.77654]
[1732882895421,2.77616,3602.1,3601.5,0.825]
[1732882895616,1.160201,3602.2,3601.5,0.825]
[1732882895816,0.55,3602.2,3601.6,2.77654]
[1732882896140,2.77623,3602.1,3601.5,0.825]
[1732882896501,2.77623,3602.1,3601.6,2.84754906]
[1732882897021,0.55,3602.2,3601.7,2.77641]
[1732882897334,0.55,3602.2,3601.8,0.07088257]
[1732882897511,3.32609,3602.2,3601.8,0.07088257]
[1732882897755,3.32609,3602.2,3601.6,2.7765]
[1732882897922,3.32609,3602.2,3601.9,0.07081934]
[1732882898117,3.32609,3602.2,3601.6,2.7765]
[1732882898320,3.32609,3602.2,3602.0,0.0707561]
[1732882898622,3.32609,3602.2,3601.7,2.77646]
[1732882898820,3.32609,3602.2,3602.1,0.07069287]
[1732882899027,1.160195,3602.2,3601.7,2.77646]
[1732882899211,2.776,3602.3,3602.1,0.07069287]
[1732882899411,2.776,3602.3,3601.7,2.77646]
[1732882899614,3.326,3602.3,3602.2,0.07069341]
[1732882900137,3.42046404,3602.3,3601.7,2.77646]
[1732882900434,3.326,3602.3,3602.2,0.07069341]
[1732882900636,4.05840695,3602.3,3601.7,2.77646]
[1732882900940,0.09446436,3602.2,3601.7,2.77646]
[1732882901101,0.09446436,3602.2,3601.8,2.84732634]
[1732882901299,0.55,3602.3,3601.9,2.77626]
[1732882901506,0.55,3602.3,3602.0,0.07081987]
[1732882901736,0.64446436,3602.3,3602.0,0.07081987]
[1732882902108,0.64446436,3602.3,3601.7,2.77646]
[1732882902309,0.64446436,3602.3,3601.8,0.07094634]
[1732882902528,0.64446436,3602.3,3601.8,2.84729634]
[1732882902743,0.64446436,3602.3,3601.9,2.77626]
[1732882902942,0.64446436,3602.3,3601.9,2.8471431]
[1732882902943,0.55,3602.3,3601.9,2.8471431]
[1732882903105,0.55,3602.3,3602.0,2.77619]
[1732882903307,5.80707381,3602.9,3602.0,2.77619]
[1732882903308,0.09445563,3602.5,3602.1,3.65567664]
[1732882903539,0.09445563,3602.8,3602.3,2.77593]
[1732882903835,0.09445563,3602.8,3602.5,2.77583]
[1732882904035,2.77546,3603.0,3602.5,2.77583]
[1732882904342,2.77546,3603.0,3602.4,0.07056697]
[1732882904343,0.09445563,3602.9,3602.6,0.07042712]
[1732882904702,0.09445563,3602.9,3602.4,2.77591]
[1732882904904,2.87000563,3602.9,3602.5,0.07046349]
[1732882905123,2.77546,3603.0,3602.5,0.07046349]
[1732882905124,0.09445563,3602.8,3602.5,0.07046349]
[1732882905441,0.09445563,3602.7,3602.5,0.07046349]
[1732882905615,0.09445563,3602.7,3602.2,2.77603]
[1732882905813,0.09445563,3602.7,3602.6,0.07038014]
[1732882906004,0.09445563,3602.7,3602.2,2.77603]
[1732882906203,0.09445563,3602.7,3602.6,0.07038014]
[1732882906743,0.6445089,3602.9,3602.3,2.776]
[1732882906958,0.0945089,3602.8,3602.6,0.07038014]
[1732882907158,0.0945089,3602.8,3602.3,2.776]
[1732882907311,0.55,3602.9,3602.7,0.07030799]
[1732882907513,2.87013591,3602.8,3602.3,2.776]
[1732882907745,0.09452591,3602.7,3602.4,0.07050098]
[1732882908415,2.77569,3602.7,3602.4,0.07050098]
[1732882908606,2.776,3602.3,3601.8,0.8045]
[1732882908841,2.77589,3602.5,3601.8,0.8045]